lending/lending_fUSD_20240509
["ID","MTS","AMOUNT","RATE_DAILY","PERIOD"]
[326732171,1715290239900,-789.18856072,0.00038003,2]
[326732172,1715290239909,-165.71698125,0.00038053,2]
[326732173,1715290239919,-248.2626,0.00038082,14]
[326732174,1715290239929,-153.63676658,0.00038242,7]
[326732175,1715290239938,-500.0,0.00038294,10]
[326732176,1715290239948,-175.9961278,0.00038319,7]
[326732177,1715290239958,-242.19420022,0.00038356,2]
[326732178,1715290239968,-1000.0,0.00038356,30]
[326732179,1715290239978,-152.52645609,0.0003849,2]
[326732180,1715290239988,-162.51375376,0.00038498,2]
[326732181,1715290239998,-1000.0,0.000385,7]
[326732182,1715290240008,-2281.2192525,0.00038611,2]
[326732183,1715290240018,-175.58,0.00038616,120]
[326732184,1715290240028,-361.8,0.000387,7]
[326732185,1715290240038,-203.52953976,0.0003872,2]
[326732186,1715290240048,-152.67353958,0.00038725,7]
[326732187,1715290240058,-244.22,0.00038746,120]
[326732188,1715290240067,-4283.60756933,0.00038832,2]
[326732189,1715290240076,-248.2626,0.00038904,14]
[326732190,1715290240086,-789.18856072,0.00038977,2]
[326732191,1715290240095,-50000.0,0.00039,29]
[326732192,1715290240105,-868.27,0.00039123,2]
[326732193,1715290240115,-868.27,0.00039123,2]
[326732194,1715290240124,-414.85,0.00039123,2]
[326732195,1715290240134,-414.85,0.00039123,2]
[326732196,1715290240143,-868.27,0.00039123,2]
[326732197,1715290240152,-414.85,0.00039123,2]
[326732198,1715290240161,-868.27,0.00039123,2]
[326732199,1715290240171,-868.27,0.00039123,2]
[326732200,1715290240181,-220.2,0.00039123,2]
[326732201,1715290240190,-153.63676658,0.00039141,7]
[326732202,1715290240200,-1000.0,0.000392,7]
[326732203,1715290240209,-153.63676658,0.00039278,7]
[326732204,1715290240220,-361.8,0.000393,7]
[326732205,1715290240229,-912.31,0.00039315,2]
[326732206,1715290240239,-155.30354453,0.00039363,7]
[326732207,1715290240249,-400.0,0.0003939,10]
[326732208,1715290240258,-165.71698125,0.00039491,2]
[326732209,1715290240268,-156.051006,0.00039498,40]
[326732210,1715290240277,-150.0,0.000395,10]
[326732211,1715290240286,-419.95,0.00039534,2]
[326732212,1715290240295,-162.92,0.00039534,2]
[326732213,1715290240305,-153.61,0.00039534,2]
[326732214,1715290240314,-829.42,0.00039589,2]
[326732215,1715290240323,-153.63676658,0.00039595,7]
[326732216,1715290240332,-162.51375376,0.00039604,2]
[326732217,1715290240341,-173.77373167,0.0003966,13]
[326732218,1715290240351,-154.15,0.000397,3]
[326732219,1715290240360,-248.2626,0.00039726,14]
[326732220,1715290240369,-150.0,0.00039726,2]
[326732221,1715290240378,-434.4,0.00039726,2]
[326732222,1715290240388,-150.0,0.00039726,2]
[326732223,1715290240397,-163.21,0.00039726,2]
[326732224,1715290240407,-701.64,0.00039726,2]
[326732225,1715290240416,-150.0,0.00039726,2]
[326732226,1715290240425,-163.21,0.00039726,2]
[326732227,1715290240435,-150.0,0.00039726,2]
[326732228,1715290240444,-150.0,0.00039726,2]
[326732229,1715290240453,-150.0,0.00039726,2]
[326732230,1715290240462,-163.16,0.00039726,2]
[326732231,1715290240472,-2281.2192525,0.00039771,2]
[326732232,1715290240481,-361.8,0.000398,7]
[326732233,1715290240490,-150.69,0.0003989,2]
[326732234,1715290240499,-3500.3496962,0.00039892,2]
[326732235,1715290240509,-578.5596,0.000399,2]
[326732236,1715290240519,-313.4423,0.000399,2]
[326732237,1715290240528,-1955.0239,0.000399,2]
[326732238,1715290240538,-3662.07579371,0.000399,13]
[326732239,1715290240547,-621.1126241,0.000399,2]
[326732240,1715290240558,-199.10945753,0.000399,2]
[326732241,1715290240567,-383.72460685,0.000399,2]
[326732242,1715290240577,-1091.41871093,0.000399,2]
[326732243,1715290240586,-203.52953976,0.000399,2]
[326732244,1715290240596,-151.4510022,0.000399,2]
[326732245,1715290240605,-520.77,0.00039909,2]
[326732246,1715290240615,-4283.60756933,0.00039919,2]
[326732247,1715290240624,-789.18856072,0.00039951,2]
[326732248,1715290240632,-150.69,0.0003999,2]
[326732249,1715290240642,-150.69,0.0003999,2]
[326732250,1715290240653,-150.69,0.0003999,2]
[326732251,1715290240662,-150.69,0.0003999,2]
[326732252,1715290240672,-150.69,0.0003999,2]
[326732253,1715290240682,-150.69,0.0003999,2]
[326732254,1715290240692,-150.69,0.0003999,2]
[326732255,1715290240702,-150.69,0.0003999,2]
[326732256,1715290240711,-150.69,0.0003999,2]
[326732257,1715290240720,-70296.2783752,0.00039996,2]
[326732258,1715290240729,-3693.8474762,0.00039996,2]
[326732259,1715290240739,-155.0,0.00039998,4]
[326732260,1715290240748,-1212.58742416,0.00039998,4]
[326732261,1715290240757,-3637.474883,0.00039998,4]
[326732262,1715290240766,-5555.24404801,0.00039998,4]
[326732263,1715290240776,-167.63437116,0.00039998,4]
[326732264,1715290240785,-4421.03246962,0.00039998,4]
[326732265,1715290240794,-263.76677859,0.00039998,4]
[326732266,1715290240803,-4870.12463514,0.00039999,2]
[326732267,1715290240813,-2111.63429178,0.00039999,2]
[326732268,1715290240823,-887.05845,0.00039999,2]
[326732269,1715290240836,-171.052172,0.00039999,2]
[326732270,1715290240846,-1126146.09202517,0.00039999,15]
[326732271,1715290240856,-50000.0,0.0004,20]
[326732272,1715290240867,-50000.0,0.0004,30]
[326732273,1715290240878,-82918.22114222,0.0004,14]
[326732274,1715290242274,-245711.20437244,0.0004,14]
[326732280,1715290243035,-100667.220303,0.0004,14]
[326732281,1715290243044,-155.0,0.0004,4]
[326732282,1715290243053,-2258.09716296,0.0004,4]
[326732283,1715290243062,-2860.97656903,0.0004,20]
[326732284,1715290243072,-241.83043562,0.0004,2]
[326732285,1715290243081,-698.31826467,0.0004,4]
[326732286,1715290243091,-27725.70616143,0.0004,4]
[326732287,1715290243100,-2000.0,0.0004,7]
[326732288,1715290243109,-200.0,0.0004,7]
[326732289,1715290243119,-2110.0,0.0004,15]
[326732290,1715290243128,-239.8,0.0004,7]
[326732291,1715290243137,-262.12,0.0004,7]
[326732292,1715290243146,-150.0,0.0004,10]
[326732293,1715290243155,-300.0,0.0004,2]
[326732294,1715290243164,-153.63676662,0.00040003,30]
[326732295,1715290243174,-200.0,0.0004002,15]
[326732296,1715290243182,-167.17,0.00040023,2]
[326732297,1715290243192,-357.46,0.00040107,120]
[326732298,1715290243201,-160.33257566,0.0004011,30]
[326732299,1715290243210,-160.33257566,0.00040164,30]
[326732300,1715290243220,-3662.07579371,0.00040174,14]
[326732301,1715290243229,-251.0,0.00040188,30]
[326732302,1715290243238,-152.52645609,0.00040195,28]
[326732303,1715290243247,-546.41438832,0.00040199,20]
[326732304,1715290243256,-361.8,0.000403,7]
[326732305,1715290243266,-160.33257566,0.00040301,30]
[326732306,1715290243275,-2566.3,0.00040327,79]
[326732307,1715290243285,-209.0,0.00040356,5]
[326732308,1715290243294,-2000.0,0.000404,7]
[326732309,1715290243303,-200.0,0.000404,7]
[326732310,1715290243312,-239.8,0.000404,7]
[326732311,1715290243321,-262.12,0.000404,7]
[326732312,1715290243330,-3662.07579371,0.00040448,14]
[326732313,1715290243339,-150.0,0.00040493,7]
[326732314,1715290243348,-150.0,0.00040493,7]
[326732315,1715290243357,-157.051006,0.00040498,40]
[326732316,1715290243366,-2110.0,0.000405,15]
[326732317,1715290243375,-150.0,0.000405,10]
[326732318,1715290243384,-160.33257566,0.00040521,30]
[326732319,1715290243393,-310.63927459,0.00040524,2]
[326732320,1715290243403,-154.78261685,0.00040536,30]
[326732321,1715290243412,-248.2626,0.00040548,14]
[326732322,1715290243421,-150.0,0.00040575,7]
[326732323,1715290243430,-251.0,0.00040603,30]
[326732324,1715290243440,-162.51375376,0.00040711,28]
[326732325,1715290243449,-160.33257566,0.00040712,30]
[326732326,1715290243458,-3662.07579371,0.00040722,14]
[326732327,1715290243467,-361.8,0.000408,7]
[326732328,1715290243477,-239.8,0.000408,7]
[326732330,1715290243486,-262.12,0.000408,7]
[326732332,1715290243495,-2000.0,0.00040804,7]
[326732334,1715290243504,-200.0,0.00040804,7]
[326732335,1715290243514,-300.0,0.00040809,2]
[326732336,1715290243523,-304.2,0.00040822,2]
[326732337,1715290243532,-300.0,0.00040858,2]
[326732338,1715290243541,-169.20242393,0.000409,15]
[326732339,1715290243551,-621.1126241,0.000409,2]
[326732340,1715290243560,-383.72460684,0.000409,2]
[326732341,1715290243569,-1091.41871093,0.000409,2]
[326732342,1715290243578,-151.45100218,0.000409,2]
[326732343,1715290243587,-175.83,0.00040908,120]
[326732344,1715290243597,-789.18856072,0.00040926,28]
[326732345,1715290243606,-165.71698125,0.00040928,2]
[326732346,1715290243615,-2281.2192525,0.00040931,2]
[326732347,1715290243624,-949.0,0.00040959,28]
[326732348,1715290243634,-150.69,0.0004099,2]
[326732349,1715290243643,-178.28774648,0.00040995,120]
[326732350,1715290243651,-3662.07579371,0.00040996,15]
[326732351,1715290243660,-1000.0,0.00040999,30]
[326732352,1715290243670,-50000.0,0.00041,21]
[326732353,1715290243679,-50000.0,0.00041,31]
[326732354,1715290243688,-1617.0,0.00041,120]
[326732355,1715290243697,-5850.0,0.00041,60]
[326732356,1715290243707,-10213.8289762,0.00041,120]
[326732357,1715290243717,-462.65393288,0.00041,120]
[326732358,1715290243726,-84998.21327069,0.00041,30]
[326732359,1715290243735,-2110.0,0.00041,15]
[326732360,1715290243744,-150.0,0.00041,10]
[326732361,1715290243753,-4283.60756933,0.00041005,2]
[326732362,1715290243763,-251.0,0.00041017,30]
[326732363,1715290243772,-1000.0,0.00041038,20]
[326732364,1715290243781,-300.0,0.00041041,2]
[326732365,1715290243791,-150.69,0.00041057,2]
[326732366,1715290243800,-62696.2370704,0.00041067,2]
[326732367,1715290243809,-3294.4893019,0.00041067,2]
[326732368,1715290243818,-300.0,0.00041089,2]
[326732369,1715290243827,-355.81530773,0.00041093,4]
[326732370,1715290243841,-1157.33774176,0.00041093,4]
[326732371,1715290243850,-409.05075285,0.00041093,4]
[326732372,1715290243860,-343.65261696,0.00041093,4]
[326732373,1715290243869,-167.68316704,0.00041093,4]
[326732374,1715290243879,-202.1932044,0.00041093,4]
[326732375,1715290243888,-177.68872852,0.00041093,4]
[326732376,1715290243897,-155.0,0.00041093,4]
[326732377,1715290243906,-2363.11334746,0.00041094,4]
[326732378,1715290243915,-298.39421916,0.00041094,2]
[326732379,1715290243924,-9467.73832695,0.00041094,2]
[326732380,1715290243933,-171.052172,0.00041094,7]
[326732381,1715290243942,-171.052172,0.00041094,7]
[326732382,1715290243951,-150.0,0.00041095,7]
[326732383,1715290243960,-448.32710388,0.00041095,30]
[326732384,1715290243969,-500.0,0.00041095,30]
[326732385,1715290243979,-500.0,0.00041095,30]
[326732386,1715290243988,-500.0,0.00041095,30]
[326732387,1715290243997,-500.0,0.00041095,30]
[326732388,1715290244006,-500.0,0.00041095,30]
[326732389,1715290244016,-500.0,0.00041095,30]
[326732390,1715290244025,-500.0,0.00041095,30]
[326732391,1715290244034,-510.11791571,0.00041095,30]
[326732392,1715290244044,-500.0,0.00041095,30]
[326732393,1715290244054,-500.0,0.00041095,30]
[326732394,1715290244063,-500.0,0.00041095,30]
[326732395,1715290244073,-500.0,0.00041095,30]
[326732396,1715290244083,-500.0,0.00041095,30]
[326732397,1715290244094,-506.04641322,0.00041095,30]
[326732398,1715290244104,-506.82817371,0.00041095,30]
[326732399,1715290244113,-500.0,0.00041095,30]
[326732400,1715290244123,-500.0,0.00041095,30]
[326732401,1715290244133,-539.44441572,0.00041095,30]
[326732402,1715290244143,-518.67234288,0.00041095,30]
[326732403,1715290244153,-500.0,0.00041095,30]
[326732404,1715290244163,-500.0,0.00041095,30]
[326732405,1715290244172,-500.0,0.00041095,30]
[326732406,1715290244181,-500.0,0.00041095,30]
[326732407,1715290244191,-509.32714896,0.00041095,30]
[326732408,1715290244201,-500.0,0.00041095,30]
[326732409,1715290244210,-510.72647583,0.00041095,30]
[326732410,1715290244220,-500.0,0.00041095,30]
[326732411,1715290244229,-500.0,0.00041095,30]
[326732412,1715290244238,-500.0,0.00041095,30]
[326732413,1715290244247,-500.0,0.00041095,30]
[326732414,1715290244257,-500.0,0.00041095,30]
[326732415,1715290244266,-500.0,0.00041095,30]
[326732416,1715290244275,-500.0,0.00041095,30]
[326732417,1715290244284,-500.0,0.00041095,30]
[326732418,1715290244293,-289.08911467,0.00041095,30]
[326732419,1715290244303,-500.0,0.00041095,30]
[326732420,1715290244312,-500.0,0.00041095,30]
[326732421,1715290244321,-500.0,0.00041095,30]
[326732422,1715290244330,-500.0,0.00041095,30]
[326732423,1715290244339,-500.0,0.00041095,30]
[326732424,1715290244348,-500.0,0.00041095,30]
[326732425,1715290244357,-500.0,0.00041095,30]
[326732426,1715290244367,-500.0,0.00041095,30]
[326732427,1715290244376,-500.0,0.00041095,30]
[326732428,1715290244385,-500.0,0.00041095,30]
[326732429,1715290244394,-500.0,0.00041095,30]
[326732430,1715290244403,-500.0,0.00041095,30]
[326732431,1715290244412,-500.0,0.00041095,30]
[326732432,1715290244421,-500.0,0.00041095,30]
[326732433,1715290244431,-500.0,0.00041095,30]
[326732434,1715290244440,-565.89,0.00041095,30]
[326732435,1715290244449,-500.0,0.00041095,30]
[326732436,1715290244458,-500.0,0.00041095,30]
[326732437,1715290244468,-1023.61,0.00041095,30]
[326732438,1715290244477,-500.0,0.00041095,30]
[326732439,1715290244486,-519.73731632,0.00041095,30]
[326732440,1715290244496,-500.0,0.00041095,30]
[326732441,1715290244505,-500.0,0.00041095,30]
[326732442,1715290244515,-500.0,0.00041095,30]
[326732443,1715290244524,-585.09,0.00041095,30]
[326732444,1715290244534,-500.0,0.00041095,30]
[326732445,1715290244543,-500.0,0.00041095,30]
[326732446,1715290244552,-500.0,0.00041095,30]
[326732447,1715290244562,-604.74621569,0.00041095,30]
[326732448,1715290244571,-500.0,0.00041095,30]
[326732449,1715290244581,-500.0,0.00041095,30]
[326732450,1715290244590,-500.0,0.00041095,30]
[326732451,1715290244599,-500.0,0.00041095,30]
[326732452,1715290244609,-500.0,0.00041095,30]
[326732453,1715290244618,-500.0,0.00041095,30]
[326732454,1715290244628,-500.0,0.00041095,30]
[326732455,1715290244637,-507.75796529,0.00041095,30]
[326732456,1715290244647,-500.0,0.00041095,30]
[326732457,1715290244656,-500.0,0.00041095,30]
[326732458,1715290244665,-539.08,0.00041095,30]
[326732459,1715290244675,-500.0,0.00041095,30]
[326732460,1715290244684,-702.97,0.00041095,30]
[326732461,1715290244694,-500.0,0.00041095,30]
[326732462,1715290244703,-559.57270274,0.00041095,30]
[326732463,1715290244712,-500.0,0.00041095,30]
[326732464,1715290244723,-500.0,0.00041095,30]
[326732465,1715290244732,-460.48050925,0.00041095,30]
[326732466,1715290244742,-500.0,0.00041095,30]
[326732467,1715290244751,-500.0,0.00041095,30]
[326732468,1715290244761,-500.0,0.00041095,30]
[326732469,1715290244770,-500.0,0.00041095,30]
[326732470,1715290244779,-500.0,0.00041095,30]
[326732471,1715290244788,-500.0,0.00041095,30]
[326732472,1715290244798,-500.0,0.00041095,30]
[326732473,1715290244808,-500.0,0.00041095,30]
[326732474,1715290244817,-853.39,0.00041095,30]
[326732475,1715290244827,-500.0,0.00041095,30]
[326732476,1715290244841,-500.0,0.00041095,30]
[326732477,1715290244850,-511.84597368,0.00041095,30]
[326732478,1715290244860,-787.63,0.00041095,30]
[326732479,1715290244869,-500.0,0.00041095,30]
[326732480,1715290244881,-1008.62,0.00041095,30]
[326732481,1715290244891,-500.0,0.00041095,30]
[326732482,1715290244900,-502.9970482,0.00041095,30]
[326732483,1715290244909,-500.0,0.00041095,30]
[326732484,1715290244921,-500.0,0.00041095,30]
[326732485,1715290244931,-500.0,0.00041095,30]
[326732486,1715290244941,-500.0,0.00041095,30]
[326732487,1715290244950,-500.0,0.00041095,30]
[326732488,1715290244960,-500.0,0.00041095,30]
[326732489,1715290244970,-500.0,0.00041095,30]
[326732490,1715290244979,-500.0,0.00041095,30]
[326732491,1715290244989,-500.0,0.00041095,30]
[326732492,1715290244998,-500.0,0.00041095,30]
[326732493,1715290245007,-500.0,0.00041095,30]
[326732494,1715290245017,-500.0,0.00041095,30]
[326732495,1715290245027,-500.0,0.00041095,30]
[326732496,1715290245036,-500.0,0.00041095,30]
[326732497,1715290245045,-598.48,0.00041095,30]
[326732498,1715290245055,-500.0,0.00041095,30]
[326732499,1715290245065,-500.0,0.00041095,30]
[326732500,1715290245074,-500.0,0.00041095,30]
[326732501,1715290245083,-500.0,0.00041095,30]
[326732502,1715290245093,-805.86,0.00041095,30]
[326732503,1715290245103,-504.8956254,0.00041095,30]
[326732504,1715290245112,-500.0,0.00041095,30]
[326732505,1715290245122,-500.0,0.00041095,30]
[326732506,1715290245131,-500.0,0.00041095,30]
[326732507,1715290245140,-500.0,0.00041095,30]
[326732508,1715290245151,-500.0,0.00041095,30]
[326732509,1715290245160,-500.0,0.00041095,30]
[326732510,1715290245169,-500.0,0.00041095,30]
[326732511,1715290245178,-500.0,0.00041095,30]
[326732512,1715290245187,-771.89,0.00041095,30]
[326732513,1715290245196,-500.0,0.00041095,30]
[326732514,1715290245205,-500.0,0.00041095,30]
[326732515,1715290245215,-500.0,0.00041095,30]
[326732516,1715290245224,-500.0,0.00041095,30]
[326732517,1715290245233,-500.0,0.00041095,30]
[326732518,1715290245243,-500.0,0.00041095,30]
[326732519,1715290245252,-500.0,0.00041095,30]
[326732520,1715290245261,-500.0,0.00041095,30]
[326732521,1715290245270,-500.0,0.00041095,30]
[326732522,1715290245280,-500.0,0.00041095,30]
[326732523,1715290245289,-500.0,0.00041095,30]
[326732524,1715290245298,-500.0,0.00041095,30]
[326732525,1715290245307,-854.59,0.00041095,30]
[326732526,1715290245316,-648.37,0.00041095,30]
[326732527,1715290245325,-987.21,0.00041095,30]
[326732528,1715290245334,-1177.91,0.00041095,10]
[326732529,1715290245343,-546.22,0.00041095,30]
[326732530,1715290245352,-500.0,0.00041095,30]
[326732531,1715290245361,-500.0,0.00041095,30]
[326732532,1715290245370,-500.0,0.00041095,30]
[326732533,1715290245379,-500.0,0.00041095,30]
[326732534,1715290245388,-500.0,0.00041095,30]
[326732535,1715290245397,-500.0,0.00041095,30]
[326732536,1715290245407,-500.0,0.00041095,30]
[326732537,1715290245415,-500.0,0.00041095,30]
[326732538,1715290245425,-502.83484775,0.00041095,30]
[326732539,1715290245434,-500.0,0.00041095,30]
[326732540,1715290245443,-500.0,0.00041095,30]
[326732541,1715290245452,-500.0,0.00041095,30]
[326732542,1715290245462,-500.0,0.00041095,30]
[326732543,1715290245471,-500.0,0.00041095,30]
[326732544,1715290245480,-500.0,0.00041095,30]
[326732545,1715290245489,-500.0,0.00041095,30]
[326732546,1715290245499,-500.0,0.00041095,30]
[326732547,1715290245508,-533.12107842,0.00041095,30]
[326732548,1715290245517,-834.64,0.00041095,30]
[326732549,1715290245526,-500.0,0.00041095,30]
[326732550,1715290245535,-723.85,0.00041095,30]
[326732551,1715290245545,-500.0,0.00041095,30]
[326732552,1715290245554,-502.16182038,0.00041095,30]
[326732553,1715290245563,-500.0,0.00041095,30]
[326732554,1715290245573,-389.05228895,0.00041095,30]
[326732555,1715290245582,-500.0,0.00041095,30]
[326732556,1715290245591,-500.0,0.00041095,30]
[326732557,1715290245601,-500.0,0.00041095,30]
[326732558,1715290245610,-500.0,0.00041095,30]
[326732559,1715290245620,-500.0,0.00041095,30]
[326732560,1715290245629,-500.0,0.00041095,30]
[326732561,1715290245638,-500.0,0.00041095,30]
[326732562,1715290245648,-500.0,0.00041095,30]
[326732563,1715290245657,-500.0,0.00041095,30]
[326732564,1715290245666,-530.15,0.00041095,30]
[326732565,1715290245675,-500.0,0.00041095,30]
[326732566,1715290245685,-500.0,0.00041095,30]
[326732567,1715290245694,-538.86,0.00041095,30]
[326732568,1715290245703,-500.0,0.00041095,30]
[326732569,1715290245713,-500.0,0.00041095,30]
[326732570,1715290245723,-500.0,0.00041095,30]
[326732571,1715290245732,-500.0,0.00041095,30]
[326732572,1715290245742,-500.0,0.00041095,30]
[326732573,1715290245752,-500.0,0.00041095,30]
[326732574,1715290245761,-500.0,0.00041095,30]
[326732575,1715290245771,-500.0,0.00041095,30]
[326732576,1715290245781,-500.0,0.00041095,30]
[326732577,1715290245791,-500.0,0.00041095,30]
[326732578,1715290245800,-500.0,0.00041095,30]
[326732579,1715290245809,-504.73468203,0.00041095,30]
[326732580,1715290245819,-500.0,0.00041095,30]
[326732581,1715290245828,-500.0,0.00041095,30]
[326732582,1715290245842,-500.0,0.00041095,30]
[326732583,1715290245851,-500.0,0.00041095,30]
[326732584,1715290245861,-500.0,0.00041095,30]
[326732585,1715290245871,-902.94,0.00041095,30]
[326732586,1715290245880,-500.0,0.00041095,30]
[326732587,1715290245890,-500.0,0.00041095,30]
[326732588,1715290245898,-500.0,0.00041095,30]
[326732589,1715290245908,-499.45562817,0.00041095,30]
[326732590,1715290245918,-500.0,0.00041095,30]
[326732591,1715290245928,-500.0,0.00041095,30]
[326732592,1715290245937,-500.0,0.00041095,30]
[326732593,1715290245947,-500.0,0.00041095,30]
[326732594,1715290245957,-500.0,0.00041095,30]
[326732595,1715290245966,-335.3735257,0.00041095,30]
[326732596,1715290245976,-900.51,0.00041095,30]
[326732597,1715290245986,-500.0,0.00041095,30]
[326732598,1715290245995,-500.0,0.00041095,30]
[326732599,1715290246005,-500.0,0.00041095,30]
[326732600,1715290246015,-500.0,0.00041095,30]
[326732601,1715290246025,-1500.0,0.00041095,30]
[326732602,1715290246034,-500.0,0.00041095,30]
[326732603,1715290246044,-500.0,0.00041095,30]
[326732604,1715290246053,-500.0,0.00041095,30]
[326732606,1715290246063,-500.0,0.00041095,30]
[326732608,1715290246072,-500.0,0.00041095,30]
[326732610,1715290246082,-558.62,0.00041095,30]
[326732612,1715290246091,-606.9,0.00041095,30]
[326732614,1715290246100,-479.88800994,0.00041095,30]
[326732615,1715290246110,-500.0,0.00041095,30]
[326732616,1715290246119,-500.0,0.00041095,30]
[326732617,1715290246128,-500.0,0.00041095,30]
[326732618,1715290246137,-500.0,0.00041095,30]
[326732620,1715290246146,-500.0,0.00041095,30]
[326732621,1715290246155,-500.0,0.00041095,30]
[326732623,1715290246164,-500.0,0.00041095,30]
[326732625,1715290246173,-500.0,0.00041095,30]
[326732627,1715290246183,-500.0,0.00041095,30]
[326732629,1715290246192,-500.0,0.00041095,30]
[326732631,1715290246201,-500.0,0.00041095,30]
[326732633,1715290246211,-500.0,0.00041095,30]
[326732634,1715290246391,-500.0,0.00041095,30]
[326732635,1715290246405,-500.0,0.00041095,30]
[326732636,1715290246414,-500.0,0.00041095,30]
[326732637,1715290246424,-500.0,0.00041095,30]
[326732638,1715290246433,-500.0,0.00041095,30]
[326732639,1715290246442,-455.77856759,0.00041095,30]
[326732640,1715290246451,-346.58625206,0.00041095,60]
[326732641,1715290246460,-922.15,0.00041095,30]
[326732642,1715290246470,-525.42349272,0.00041095,30]
[326732643,1715290246479,-986.47,0.00041095,30]
[326732644,1715290246488,-644.62,0.00041095,30]
[326732645,1715290246497,-500.0,0.00041095,30]
[326732646,1715290246506,-604.29,0.00041095,30]
[326732647,1715290246515,-500.0,0.00041095,30]
[326732648,1715290246525,-500.0,0.00041095,30]
[326732649,1715290246534,-500.0,0.00041095,30]
[326732650,1715290246543,-500.0,0.00041095,30]
[326732651,1715290246552,-500.0,0.00041095,30]
[326732652,1715290246561,-500.0,0.00041095,30]
[326732653,1715290246570,-500.0,0.00041095,30]
[326732654,1715290246580,-500.0,0.00041095,30]
[326732655,1715290246590,-501.809007,0.00041095,30]
[326732656,1715290246599,-500.0,0.00041095,30]
[326732657,1715290246608,-622.02,0.00041095,30]
[326732658,1715290246618,-641.45,0.00041095,30]
[326732659,1715290246627,-500.0,0.00041095,30]
[326732660,1715290246637,-500.0,0.00041095,30]
[326732661,1715290246646,-500.0,0.00041095,30]
[326732662,1715290246656,-500.0,0.00041095,30]
[326732663,1715290246666,-500.0,0.00041095,30]
[326732664,1715290246675,-500.0,0.00041095,30]
[326732665,1715290246684,-500.0,0.00041095,30]
[326732666,1715290246694,-500.0,0.00041095,30]
[326732667,1715290246703,-671.83,0.00041095,30]
[326732668,1715290246713,-500.0,0.00041095,30]
[326732669,1715290246723,-500.0,0.00041095,30]
[326732670,1715290246733,-723.71,0.00041095,30]
[326732671,1715290246742,-621.98,0.00041095,30]
[326732672,1715290246753,-500.0,0.00041095,30]
[326732673,1715290246763,-500.0,0.00041095,30]
[326732674,1715290246772,-500.0,0.00041095,30]
[326732675,1715290246782,-504.41430361,0.00041095,30]
[326732676,1715290246791,-500.0,0.00041095,30]
[326732677,1715290246801,-500.0,0.00041095,30]
[326732678,1715290246810,-500.0,0.00041095,30]
[326732679,1715290246820,-500.0,0.00041095,30]
[326732680,1715290246829,-500.0,0.00041095,30]
[326732681,1715290246843,-500.0,0.00041095,30]
[326732682,1715290246853,-512.78339851,0.00041095,30]
[326732683,1715290246863,-500.0,0.00041095,30]
[326732684,1715290246873,-500.0,0.00041095,30]
[326732685,1715290246882,-500.0,0.00041095,30]
[326732686,1715290246892,-948.26,0.00041095,30]
[326732687,1715290246901,-500.0,0.00041095,30]
[326732688,1715290246911,-500.0,0.00041095,30]
[326732689,1715290246921,-500.0,0.00041095,30]
[326732690,1715290246931,-500.0,0.00041095,31]